bitfinex/quotes_SOLUSD_20240925
["timestamp","ask_amount","ask_price","bid_price","bid_amount"]
[1727249784004,0.2447786,149.82,149.74,9.60212518]
[1727249784193,0.2447786,149.82,149.74,16.58283667]
[1727249784790,1.91366023,149.82,149.74,16.58283667]
[1727249785618,1.91366023,149.82,149.74,6.98071149]
[1727249785782,6.6754,149.81,149.74,6.98071149]
[1727249786690,1.66910574,149.8,149.74,6.98071149]
[1727249787386,1.66910574,149.8,149.73,30.62522518]
[1727249787590,1.66910574,149.8,149.73,37.60615197]
[1727249788416,1.66910574,149.8,149.73,31.58805197]
[1727249790513,6.6754,149.81,149.73,31.58805197]
[1727249790705,8.34449274,149.81,149.73,31.58805197]
[1727249791597,2.6052786,149.82,149.75,9.60212518]
[1727249794618,2.6052786,149.82,149.76,1.33509272]
[1727249796416,2.6052786,149.82,149.75,9.60212518]
[1727249799115,1.66886876,149.81,149.73,31.58805197]
[1727249799496,9.2799786,149.82,149.73,31.58805197]
[1727249802517,2.6052786,149.82,149.73,31.58805197]
[1727249803404,4.2742839,149.82,149.73,31.58805197]
[1727249803602,2.6052786,149.82,149.73,31.58805197]
[1727249803820,9.2800786,149.82,149.73,31.58805197]
[1727249804137,30.451984,149.81,149.73,31.58805197]
[1727249812828,23.776884,149.81,149.74,1.33535474]
[1727249814528,23.776884,149.81,149.73,31.58805197]
[1727249814827,30.452084,149.81,149.73,31.58805197]
[1727249815316,30.452084,149.81,149.73,15.005]
[1727249815317,8.34469736,149.8,149.73,15.005]
[1727249819425,1.66919736,149.8,149.73,15.005]
[1727249819629,30.452084,149.81,149.73,15.005]
[1727249820921,23.776884,149.81,149.73,15.005]
[1727249821127,30.452984,149.79,149.73,15.005]
[1727249821340,1.66947772,149.78,149.73,15.005]
[1727249821634,30.452984,149.79,149.73,15.005]
[1727249824524,6.6756,149.8,149.73,24.60712518]
[1727249824731,0.2447786,149.82,149.75,15.83322518]
[1727249825028,0.2447786,149.82,149.77,9.60212518]
[1727249827001,0.2447786,149.82,149.79,9.60212518]
[1727249827206,0.2447786,149.82,149.79,10.93712231]
[1727249835536,0.2447786,149.82,149.81,9.60212518]
[1727249835739,0.2447786,149.82,149.81,10.93691958]
[1727249836944,0.2447786,149.82,149.81,9.60212518]
[1727249837119,0.2447786,149.82,149.8,6.2303]
[1727249839913,0.2447786,149.82,149.81,9.60212518]
[1727249846921,0.2447786,149.82,149.8,6.2303]
[1727249847250,0.2447786,149.82,149.78,24.94442518]
[1727249847435,0.2447786,149.82,149.78,15.3423]
[1727249849039,0.2447786,149.82,149.8,9.60212518]
[1727249849342,0.2447786,149.82,149.81,10.93691831]
[1727249849550,0.2447786,149.82,149.81,9.60212518]
[1727249851542,0.2447786,149.82,149.78,15.3423]
[1727249851721,0.2447786,149.82,149.79,9.60212518]
[1727249857535,0.2447786,149.82,149.8,1.33489754]
[1727249857739,0.2447786,149.82,149.81,9.60212518]
[1727249860148,0.2447786,149.82,149.81,35.87912518]
[1727249860963,0.2447786,149.82,149.81,15.87912518]
[1727249869166,0.2447786,149.82,149.79,21.33467633]
[1727249869344,0.2447786,149.82,149.81,9.60212518]
[1727249873378,0.2447786,149.82,149.8,1.33472702]
[1727249873567,0.2447786,149.82,149.81,9.60212518]
[1727249881256,0.2447786,149.82,149.81,29.60212518]
[1727249885668,0.2447786,149.82,149.81,59.65830918]
[1727249885874,0.2447786,149.82,149.81,75.77230918]
[1727249887180,0.2447786,149.82,149.81,77.10661585]
[1727249888068,0.2447786,149.82,149.81,75.77230918]
[1727249888471,0.2447786,149.82,149.81,77.10661664]
[1727249889295,0.422264,149.87,149.82,43.776884]
[1727249889605,0.422264,149.87,149.85,9.60212518]
[1727249892089,0.422264,149.87,149.86,45.1111867]
[1727249892293,0.422264,149.87,149.86,61.2251867]
[1727249893587,0.422264,149.87,149.86,59.890884]
[1727249894697,0.422264,149.87,149.86,36.114]
[1727249894874,0.422264,149.87,149.86,20.0]
[1727249896473,0.422264,149.87,149.86,21.33427745]
[1727249898192,0.422264,149.87,149.86,20.0]
[1727249901189,0.422264,149.87,149.86,21.33426379]
[1727249901388,0.422264,149.87,149.86,20.0]
[1727249902277,0.422264,149.87,149.86,9.60212518]
[1727249902701,0.422264,149.87,149.86,53.37900918]
[1727249902908,0.2447786,149.92,149.91,9.60212518]
[1727249906287,0.2447786,149.92,149.91,29.60212518]
[1727249911212,0.2447786,149.92,149.91,9.60212518]
[1727249918609,0.2447786,150.01,149.92,40.230784]
[1727249918810,0.2447786,150.01,149.95,9.60212518]
[1727249919315,0.2447786,150.01,149.95,54.71221657]
[1727249919527,0.2447786,150.01,150.0,9.60212518]
[1727249920410,0.2447786,150.01,149.95,43.776884]
[1727249920411,0.2447786,150.01,149.98,9.60212518]
[1727249921936,0.2447786,150.01,150.0,9.60212518]
[1727249922423,0.2447786,150.01,149.96,23.776884]
[1727249922625,0.2447786,150.01,150.0,9.60212518]
[1727249924104,0.2447786,150.01,150.0,33.37900918]
[1727249924324,0.2447786,150.01,150.0,34.71176414]
[1727249924733,2.3605,150.12,150.0,34.71176414]
[1727249924734,0.3704548,150.12,150.02,23.776884]
[1727249925025,0.3704548,150.12,150.03,9.60212518]
[1727249925428,7.0317548,150.12,150.03,9.60212518]
[1727249925609,7.0317548,150.12,150.01,43.0685]
[1727249926012,9.0223,150.11,150.02,9.60212518]
[1727249926213,8.6511,150.11,150.02,9.60212518]
[1727249927235,1.66577522,150.1,150.02,9.60212518]
[1727249927527,8.6511,150.11,150.04,9.60212518]
[1727249928319,0.3704548,150.12,150.05,23.776884]
[1727249928508,0.3704548,150.12,150.03,23.776884]
[1727249928509,0.3704548,150.12,150.06,9.60212518]
[1727249929532,0.3704548,150.12,150.08,9.60212518]
[1727249931137,0.3704548,150.12,150.03,23.776884]
[1727249931320,0.3704548,150.12,150.07,9.60212518]
[1727249933525,0.3704548,150.12,150.09,9.60212518]
[1727249940416,0.3704548,150.12,150.06,15.1507]
[1727249940616,6.6609,150.13,150.06,15.1507]
[1727249940834,0.1058598,150.14,150.07,9.60212518]
[1727249941032,0.1058598,150.14,150.08,1.33235073]
[1727249941843,0.1058598,150.14,150.07,9.60212518]
[1727249942042,6.7664598,150.14,150.07,9.60212518]
[1727249942250,6.661,150.13,150.07,9.60212518]
[1727249942840,0.1058598,150.14,150.07,9.60212518]
[1727249943055,6.6614,150.12,150.07,9.60212518]
[1727249943343,6.6614,150.12,150.05,9.60212518]
[1727249943547,0.1058598,150.14,150.05,9.60212518]
[1727249943548,6.6609,150.13,150.05,9.60212518]
[1727249944425,6.7662598,150.14,150.07,9.60212518]
[1727249944621,6.7662598,150.14,150.08,1.33243744]
[1727249944834,6.6608,150.13,150.08,1.33243744]
[1727249945541,6.7662598,150.14,150.07,9.60212518]
[1727249945925,6.6609,150.13,150.07,9.60212518]
[1727249946323,0.1058598,150.14,150.07,9.60212518]
[1727249948250,6.6609,150.13,150.04,20.0]
[1727249948457,6.6613,150.12,150.05,9.60212518]
[1727249948953,0.1058598,150.14,150.05,9.60212518]
[1727249949126,6.6609,150.13,150.06,1.33249411]
[1727249949551,6.6609,150.13,150.07,9.60212518]
[1727249949854,6.7663598,150.14,150.07,9.60212518]
[1727249952921,6.7663598,150.14,150.08,1.33239606]
[1727249953122,0.1058598,150.14,150.08,1.33239606]
[1727249953349,0.1058598,150.14,150.08,1.33226619]
[1727249953549,0.1058598,150.14,150.08,1.33231917]
[1727249953748,0.1058598,150.14,150.07,9.60212518]
[1727249954549,0.1058598,150.14,150.08,1.33232072]
[1727249954950,0.1058598,150.14,150.07,9.60212518]
[1727249955856,0.1058598,150.14,150.08,15.8608]
[1727249958466,0.1058598,150.14,150.09,10.93426033]
[1727249958959,0.1058598,150.14,150.13,9.60212518]
[1727249959458,0.1058598,150.14,150.11,9.60212518]
[1727249960461,0.1058598,150.14,150.12,1.33187831]
[1727249962149,0.1058598,150.14,150.11,9.60212518]
[1727249965149,0.1058598,150.14,150.12,9.60212518]
[1727249965348,0.1058598,150.14,150.13,1.3319442]
[1727249965743,0.1058598,150.14,150.12,9.60212518]
[1727249966657,0.1058598,150.14,150.1,9.60212518]
[1727249966860,0.1058598,150.14,150.09,9.60212518]
[1727249967067,0.1058598,150.14,150.1,9.60212518]
[1727249967867,0.1058598,150.14,150.11,1.33204704]
[1727249968662,0.1058598,150.14,150.12,1.33204856]
[1727249968862,0.1058598,150.14,150.11,9.60212518]
[1727249971356,0.1058598,150.14,150.12,1.3320769]
[1727249973568,0.1058598,150.14,150.11,9.60212518]
[1727249973770,23.776884,150.2,150.11,9.60212518]
[1727249974062,23.776884,150.2,150.12,1.3320814]
[1727249974748,23.776884,150.2,150.11,9.60212518]
[1727249974948,6.659,150.18,150.11,9.60212518]
[1727249975571,6.6591,150.17,150.11,9.60212518]
[1727249975870,6.6591,150.17,150.1,9.60212518]
[1727249977369,23.776884,150.2,150.1,9.60212518]
[1727249977571,6.6596,150.16,150.1,9.60212518]
[1727249979169,23.776884,150.2,150.09,9.60212518]
[1727249979360,6.6601,150.15,150.08,25.46292518]
[1727249979675,6.6605,150.14,150.08,25.46292518]
[1727249979875,6.66,150.15,150.09,1.3322029]
[1727249980253,40.421884,150.2,150.08,25.46292518]
[1727249980455,3.08598598,150.21,150.08,25.46292518]
[1727249980456,23.776884,150.17,150.08,15.8608]
[1727249980755,6.6609,150.13,150.08,15.8608]
[1727249981460,6.6604,150.14,150.08,15.8608]
[1727249983679,6.6604,150.15,150.08,15.8608]
[1727249983882,6.6605,150.14,150.08,15.8608]
[1727249986251,6.659,150.18,150.09,10.93447898]
[1727249986449,19.72958598,150.21,150.09,10.93447898]
[1727249986855,6.6595,150.17,150.09,10.93447898]
[1727249987261,6.6595,150.17,150.09,9.60212518]
[1727249987856,19.1464577,150.21,150.11,9.60212518]
[1727249988062,6.6587,150.18,150.11,9.60212518]
[1727249990176,6.6587,150.18,150.12,15.7991]
[1727249990385,6.6591,150.17,150.12,15.7991]
[1727249990791,6.6595,150.16,150.12,15.7991]
[1727249996985,23.776884,150.2,150.13,1.33208855]
[1727249996986,6.6591,150.17,150.13,1.33208855]
[1727249997180,6.6588,150.18,150.12,15.7991]
[1727249998584,6.6591,150.17,150.12,15.7991]
[1727249999985,23.776884,150.2,150.12,15.7991]
[1727250000295,6.659,150.18,150.12,15.7991]
[1727250000966,23.776884,150.2,150.12,15.7991]
[1727250001196,6.6592,150.17,150.12,15.7991]
[1727250002088,6.6583,150.19,150.13,1.33198381]
[1727250002281,6.6583,150.19,150.14,6.3717]
[1727250002500,6.6583,150.19,150.15,1.33178343]
[1727250002667,6.6583,150.19,150.14,6.3717]
[1727250003176,6.7997577,150.21,150.14,6.3717]
[1727250003493,6.7997577,150.21,150.16,16.0578]
[1727250004700,6.6583,150.19,150.16,16.0578]
[1727250005270,6.6582,150.19,150.16,16.0578]
[1727250005572,6.6591,150.17,150.16,16.0578]
[1727250005978,6.6587,150.18,150.16,16.0578]
[1727250006385,6.6581,150.2,150.16,16.0578]
[1727250007289,6.6582,150.19,150.16,16.0578]
[1727250007491,7.08301646,150.2,150.16,16.0578]
[1727250007799,0.42511646,150.19,150.16,16.0578]
[1727250007969,6.6591,150.17,150.14,6.3717]
[1727250011994,6.6603,150.15,150.12,15.5397]
[1727250012178,23.9192417,150.21,150.12,15.5397]
[1727250012375,43.9192417,150.21,150.12,15.5397]
[1727250013592,6.6604,150.14,150.12,15.5397]
[1727250013996,6.6608,150.13,150.12,15.5397]
[1727250017398,23.776884,150.18,150.12,15.5397]
[1727250017975,6.6603,150.15,150.12,15.5397]
[1727250021089,6.6604,150.14,150.12,15.5397]
[1727250026014,23.776884,150.16,150.1,6.4479]
[1727250026186,0.42511646,150.13,150.08,15.7531]
[1727250026380,0.42511646,150.13,150.06,6.4939797]
[1727250026381,6.6631,150.08,150.06,6.4939797]
[1727250027492,6.6627,150.09,150.06,6.4939797]
[1727250027897,23.776884,150.12,150.06,6.4939797]
[1727250028406,6.6632,150.08,150.06,6.4939797]
[1727250029491,23.776884,150.12,150.06,6.4939797]
[1727250029492,6.6626,150.1,150.06,6.4939797]
[1727250032412,6.6618,150.11,150.06,6.4939797]
[1727250034921,6.6622,150.1,150.06,6.4939797]
[1727250046599,6.6618,150.11,150.06,6.4939797]
[1727250048114,6.6618,150.11,150.06,6.3926677]
[1727250055747,6.6613,150.12,150.07,16.3503674]
[1727250057125,6.6618,150.11,150.07,15.0179]
[1727250057432,6.6618,150.11,150.07,16.35038686]
[1727250058534,6.6614,150.12,150.07,16.35038686]
[1727250059719,23.776884,150.15,150.07,16.35038686]
[1727250059928,6.66,150.15,150.08,15.70732518]
[1727250060123,6.66,150.15,150.1,15.0179]
[1727250060321,6.66,150.15,150.11,1.33218726]
[1727250060830,0.1699725,150.2,150.12,6.1052]
[1727250061022,0.1699725,150.2,150.14,15.0179]
[1727250061236,6.6592,150.17,150.14,15.0179]
[1727250064628,6.66,150.15,150.14,15.0179]
[1727250067440,16.8150725,150.2,150.14,15.0179]
[1727250067645,6.6592,150.17,150.14,15.0179]
[1727250068718,6.66,150.15,150.14,15.0179]
[1727250072143,0.1699725,150.2,150.12,6.1052]
[1727250072144,6.6608,150.13,150.12,6.1052]
[1727250072725,6.6604,150.14,150.12,6.1052]
[1727250072929,6.6601,150.15,150.12,6.1052]
[1727250074747,6.6595,150.17,150.13,1.33208033]
[1727250074950,6.6587,150.18,150.14,15.2259]
[1727250075123,0.1699725,150.2,150.14,15.2259]
[1727250075124,6.6582,150.19,150.16,6.6053]
[1727250079547,0.1699725,150.2,150.16,6.6053]
[1727250079737,6.6587,150.18,150.16,6.6053]
[1727250080922,6.6582,150.19,150.16,6.6053]
[1727250082138,0.42511646,150.18,150.16,6.6053]
[1727250082443,23.776884,150.19,150.16,6.6053]
[1727250082444,6.6591,150.17,150.16,6.6053]
[1727250082959,6.6597,150.16,150.14,15.2259]
[1727250083255,6.6591,150.17,150.14,15.2259]
[1727250084035,0.42511646,150.18,150.14,15.2259]
[1727250084231,6.66,150.15,150.14,15.2259]
[1727250085130,6.6601,150.15,150.12,6.6483]
[1727250086156,6.6596,150.16,150.12,7.98047976]
[1727250086634,6.6596,150.16,150.12,6.6483]
[1727250087551,6.66,150.15,150.12,6.6483]
[1727250087741,6.6597,150.16,150.12,6.6483]
[1727250092955,6.6592,150.17,150.13,1.3320295]
[1727250093671,16.8150725,150.2,150.13,1.3320295]
[1727250093672,6.6587,150.18,150.13,1.3320295]
[1727250093968,0.1699725,150.2,150.14,15.6817]
[1727250094178,6.8277725,150.2,150.14,15.6817]
[1727250094869,6.8277725,150.2,150.15,6.6483]
[1727250097847,0.42511646,150.19,150.15,6.6483]
[1727250098048,6.6592,150.17,150.15,6.6483]
[1727250099663,6.6595,150.16,150.15,6.6483]
[1727250100046,0.1699725,150.2,150.15,6.6483]
[1727250100246,0.1699725,150.2,150.15,7.97991996]
[1727250100661,0.1699725,150.2,150.15,6.6483]
[1727250102062,0.1699725,150.2,150.16,26.99950954]
[1727250102372,0.3517,150.24,150.2,6.6665]
[1727250102748,7.0077,150.24,150.2,6.6665]
[1727250104955,7.0077,150.24,150.2,7.9979319]
[1727250106555,0.3517,150.24,150.2,6.6665]
[1727250111256,0.3517,150.24,150.21,16.0041]
[1727250111671,7.0077,150.24,150.21,16.0041]
[1727250112558,0.3517,150.24,150.21,16.0041]
[1727250113470,0.3517,150.24,150.22,1.33100655]
[1727250113662,0.3517,150.24,150.21,16.0041]
[1727250113854,7.0078,150.24,150.21,16.0041]
[1727250114059,0.3517,150.24,150.21,16.0041]
[1727250114670,7.0081,150.24,150.21,16.0041]
[1727250114860,6.6565,150.23,150.21,16.0041]
[1727250115481,6.6569,150.22,150.21,16.0041]
[1727250115686,6.6568,150.23,150.21,16.0041]
[1727250115860,6.6569,150.22,150.21,16.0041]
[1727250116259,6.6573,150.21,150.17,16.0041]
[1727250116481,6.6574,150.21,150.17,16.0041]
[1727250116864,6.6577,150.2,150.17,16.0041]
[1727250117168,6.6583,150.19,150.17,16.0041]
[1727250117690,0.3517,150.24,150.17,16.0041]
[1727250117691,6.6578,150.2,150.17,16.0041]
[1727250118872,6.6582,150.19,150.17,16.0041]
[1727250120881,6.6586,150.18,150.17,16.0041]
[1727250121079,6.6583,150.19,150.17,16.0041]
[1727250123067,0.3517,150.24,150.17,17.33584918]
[1727250123068,6.6573,150.21,150.17,17.33584918]
[1727250124388,6.6581,150.2,150.17,16.0041]
[1727250124587,6.6582,150.19,150.17,16.0041]
[1727250125296,6.6578,150.2,150.17,16.0041]
[1727250132606,6.6582,150.19,150.17,16.0041]
[1727250135710,6.6579,150.2,150.17,16.0041]
[1727250135896,6.6579,150.2,150.17,17.33585389]
[1727250136277,6.6574,150.21,150.17,17.33585389]
[1727250136477,6.6574,150.21,150.17,16.0041]
[1727250137004,16.9923,150.24,150.17,16.0041]
[1727250137308,6.6582,150.19,150.17,16.0041]
[1727250139907,6.6586,150.18,150.17,16.0041]
[1727250140780,6.6585,150.19,150.17,16.0041]
[1727250152798,6.6586,150.18,150.16,6.558]
[1727250160033,6.6591,150.17,150.13,15.3779]
[1727250164006,16.645,150.2,150.13,15.3779]
[1727250164218,6.6594,150.17,150.13,15.3779]
[1727250165220,6.6595,150.16,150.13,15.3779]
[1727250165416,6.6591,150.17,150.13,15.3779]
[1727250167912,16.645,150.2,150.13,15.3779]
[1727250167913,23.776884,150.19,150.13,15.3779]
[1727250168521,6.6596,150.16,150.13,15.3779]
[1727250172911,24.20200046,150.19,150.13,15.3779]
[1727250173112,6.6604,150.14,150.13,15.3779]
[1727250180852,23.776884,150.19,150.13,15.3779]
[1727250181142,6.66,150.15,150.13,15.3779]
[1727250184340,23.776884,150.19,150.13,15.3779]
[1727250184527,6.6604,150.14,150.13,15.3779]
[1727250188135,23.776884,150.19,150.13,15.3779]
[1727250188340,6.66,150.15,150.13,15.3779]
[1727250190043,6.6609,150.13,150.09,15.8006402]
[1727250190948,6.6605,150.14,150.1,1.33240848]
[1727250191445,23.776884,150.17,150.09,15.8006402]
[1727250191655,6.661,150.13,150.09,15.8006402]
[1727250194423,6.6614,150.12,150.09,15.8006402]
[1727250194829,6.6612,150.13,150.09,15.8006402]
[1727250195253,6.6612,150.13,150.09,17.13296797]
[1727250195630,6.6612,150.13,150.09,15.8006402]
[1727250198254,23.776884,150.17,150.09,15.8006402]
[1727250198555,6.6608,150.14,150.09,15.8006402]
[1727250199056,23.776884,150.17,150.09,15.8006402]
[1727250199236,6.661,150.13,150.09,15.8006402]
[1727250200534,36.6471,150.18,150.1,1.33232963]
[1727250200741,6.66,150.15,150.1,1.33232963]
[1727250200940,6.66,150.15,150.09,25.40276538]
[1727250201252,6.6604,150.14,150.09,25.40276538]
[1727250203857,6.6604,150.14,150.09,15.8006402]
[1727250204559,6.6603,150.15,150.09,15.8006402]
[1727250205939,6.6604,150.14,150.09,15.8006402]
[1727250207150,23.776884,150.17,150.09,15.8006402]
[1727250208465,6.661,150.13,150.09,15.8006402]
[1727250211173,6.6614,150.12,150.09,15.8006402]
[1727250214555,23.776884,150.17,150.09,15.8006402]
[1727250214756,6.662,150.11,150.09,15.8006402]
[1727250215187,6.6614,150.12,150.09,17.13305394]
[1727250215476,6.6609,150.13,150.09,17.13305394]
[1727250217847,6.6609,150.13,150.09,15.8006402]
[1727250218060,6.6614,150.12,150.09,15.8006402]
[1727250220879,6.6618,150.11,150.09,15.8006402]
[1727250221980,6.6618,150.11,150.09,17.1330863]
[1727250222271,6.6614,150.12,150.09,15.8006402]
[1727250222472,6.6618,150.11,150.09,15.8006402]
[1727250222774,6.6622,150.1,150.09,15.8006402]
[1727250225373,6.6622,150.1,150.09,0.2458402]
[1727250228573,16.6519,150.14,150.09,0.2458402]
[1727250228755,6.6618,150.11,150.09,0.2458402]
[1727250230479,6.6622,150.1,150.09,0.2458402]
[1727250230780,16.6519,150.14,150.09,0.2458402]
[1727250231085,6.6618,150.11,150.09,0.2458402]
[1727250236379,6.6622,150.1,150.09,0.2458402]
[1727250240857,6.6618,150.11,150.09,0.2458402]
[1727250241484,16.6519,150.14,150.09,0.2458402]
[1727250241784,6.6622,150.1,150.09,0.2458402]
[1727250246286,6.6608,150.14,150.09,17.38076195]
[1727250246788,6.6609,150.13,150.09,17.38076195]
[1727250247182,6.6613,150.12,150.09,16.0481402]
[1727250247489,20.0,150.16,150.09,16.0481402]
[1727250247684,6.6618,150.11,150.09,16.0481402]
[1727250248792,6.6622,150.1,150.09,16.0481402]
[1727250249083,16.6515,150.14,150.09,16.0481402]
[1727250249293,6.6619,150.11,150.09,16.0481402]
[1727250249785,16.6515,150.14,150.09,16.0481402]
[1727250250095,6.6622,150.1,150.09,16.0481402]
[1727250251293,6.6618,150.11,150.09,16.0481402]
[1727250252689,16.6515,150.14,150.09,16.0481402]
[1727250252893,6.6622,150.1,150.09,16.0481402]
[1727250253187,16.6515,150.14,150.09,16.0481402]
[1727250253403,6.6616,150.12,150.09,16.0481402]
[1727250254273,6.6616,150.12,150.09,17.38065338]
[1727250254890,6.6616,150.12,150.09,16.0481402]
[1727250258195,7.08691646,150.11,150.09,16.0481402]
[1727250258500,6.6618,150.11,150.09,16.0481402]
[1727250260476,23.776884,150.16,150.09,16.0481402]
[1727250260675,6.6614,150.12,150.09,16.0481402]
[1727250262703,6.6618,150.11,150.09,16.0481402]
[1727250263687,6.6613,150.12,150.09,16.0481402]
[1727250264690,23.776884,150.16,150.09,16.0481402]
[1727250264900,6.6618,150.11,150.09,16.0481402]
[1727250265319,6.6614,150.12,150.09,16.0481402]
[1727250265982,23.776884,150.16,150.09,16.0481402]
[1727250266193,6.6618,150.11,150.09,16.0481402]
[1727250267588,23.776884,150.16,150.09,16.0481402]
[1727250267589,6.6622,150.1,150.09,16.0481402]
[1727250268784,6.6618,150.11,150.09,16.0481402]
[1727250270600,36.6506,150.15,150.09,16.0481402]
[1727250270801,6.6622,150.1,150.09,16.0481402]
[1727250271181,6.6622,150.1,150.09,0.2458402]
[1727250279388,6.6617,150.12,150.09,0.2458402]
[1727250280984,36.6506,150.15,150.09,0.2458402]
[1727250281202,6.6618,150.11,150.09,0.2458402]
[1727250287399,36.6506,150.15,150.09,0.2458402]
[1727250287605,6.6622,150.1,150.09,0.2458402]
[1727250300405,30.439084,150.1,150.09,0.2458402]
[1727250305702,6.6622,150.1,150.09,0.2458402]
[1727250314327,6.6618,150.11,150.09,0.2458402]
[1727250318531,17.07421646,150.16,150.09,0.2458402]
[1727250318738,6.6622,150.1,150.09,0.2458402]
[1727250322514,30.439084,150.1,150.09,0.2458402]
[1727250324718,6.6622,150.1,150.09,0.2458402]
[1727250329239,30.439084,150.1,150.09,0.2458402]
[1727250337533,50.439084,150.1,150.09,0.2458402]
[1727250337958,6.6644,150.05,150.04,6.7291402]
[1727250344462,6.6636,150.07,150.04,6.7291402]
[1727250344645,6.6631,150.08,150.05,16.1622]
[1727250348762,43.776884,150.13,150.05,17.49499123]
[1727250348964,6.6625,150.1,150.05,17.49499123]
[1727250349274,6.6625,150.1,150.05,16.1622]
[1727250349451,6.6628,150.09,150.05,16.1622]
[1727250354851,6.6627,150.09,150.05,16.1622]
[1727250355269,6.6627,150.09,150.05,17.49486685]
[1727250355478,6.6627,150.09,150.05,16.1622]
[1727250357454,23.776884,150.13,150.05,16.1622]
[1727250357654,6.6631,150.08,150.05,16.1622]
[1727250359780,23.776884,150.13,150.05,16.1622]
[1727250359781,6.664,150.06,150.05,16.1622]
[1727250360074,0.42511646,150.07,150.05,16.1622]
[1727250360075,6.6635,150.07,150.05,16.1622]
[1727250361282,6.664,150.06,150.05,16.1622]
[1727250362563,6.6644,150.05,150.04,6.7291402]
[1727250363896,6.6644,150.05,150.04,0.2458402]
[1727250364857,30.441284,150.05,150.04,0.2458402]
[1727250368576,30.86640046,150.05,150.04,0.2458402]
[1727250369087,30.441284,150.05,150.04,0.2458402]
[1727250371468,50.441284,150.05,150.04,0.2458402]
[1727250371668,6.6662,150.01,150.0,6.1225]
[1727250371886,44.20200046,150.04,149.99,0.3174658]
[1727250372171,6.6666,150.0,149.99,0.3174658]
[1727250372973,30.443484,150.0,149.99,0.3174658]
[1727250377206,30.443484,150.0,149.95,0.2458402]
[1727250377207,6.6684,149.96,149.95,0.2458402]
[1727250386206,6.1684,149.96,149.95,0.2458402]
[1727250414335,6.6681,149.97,149.95,0.2458402]
[1727250423548,40.444284,150.0,149.95,0.2458402]
[1727250423851,6.6684,149.96,149.95,0.2458402]
[1727250426459,6.668,149.97,149.95,0.2458402]
[1727250428452,40.444284,150.0,149.95,0.2458402]
[1727250428762,6.6684,149.96,149.95,0.2458402]
[1727250432861,40.444284,150.0,149.95,0.2458402]
[1727250433181,6.6683,149.97,149.95,0.2458402]
[1727250436470,40.444284,150.0,149.95,0.2458402]
[1727250436675,6.6684,149.96,149.95,0.2458402]
[1727250462468,30.445284,149.96,149.95,0.2458402]
[1727250464286,6.6684,149.96,149.95,0.2458402]
[1727250483912,6.6684,149.96,149.95,0.2458402]
[1727250485720,6.6662,150.01,149.96,6.4276]
[1727250485935,1.16148505,150.02,149.97,1.33340226]
[1727250486220,6.6649,150.04,149.98,16.3207]
[1727250486408,15.48231752,150.05,149.98,16.3207]
[1727250486807,6.6663,150.01,149.98,16.3207]
[1727250487018,16.6599,150.07,149.98,16.3207]
[1727250487316,6.6658,150.02,149.99,1.33328192]
[1727250487621,6.6653,150.03,149.99,1.33328192]
[1727250487920,6.6653,150.03,149.98,17.65396202]
[1727250489511,6.6658,150.02,149.98,16.3207]
[1727250489716,6.6662,150.01,149.98,16.3207]
[1727250493620,6.6667,150.0,149.98,16.3207]
[1727250494008,0.42511646,149.99,149.96,6.4276]
[1727250494206,16.664,150.03,149.96,6.4276]
[1727250494207,6.6676,149.98,149.96,6.4276]
[1727250494520,6.6671,149.99,149.96,6.4276]
[1727250500508,23.776884,150.02,149.96,6.4276]
[1727250500509,6.6679,149.98,149.96,6.4276]
[1727250502229,6.668,149.97,149.96,6.4276]
[1727250502719,23.776884,150.02,149.96,6.4276]
[1727250502926,6.6676,149.98,149.96,6.4276]
[1727250506912,6.668,149.97,149.96,6.4276]
[1727250507322,6.668,149.97,149.95,0.2458402]
[1727250507521,6.6684,149.96,149.95,0.2458402]
[1727250508331,6.6681,149.97,149.95,0.2458402]
[1727250511420,6.6684,149.96,149.95,0.2458402]
[1727250514517,43.776884,150.0,149.95,0.2458402]
[1727250514842,6.6671,149.99,149.95,0.2458402]
[1727250517735,6.6671,149.99,149.96,1.3335897]
[1727250518837,6.6671,149.99,149.95,0.2458402]
[1727250519434,6.6671,149.99,149.95,1.57938574]
[1727250519939,6.6671,149.99,149.95,0.2458402]